[Event "European Online Club-ch-I 2021"]
[Site "Online"]
[Date "2021.03.27"]
[Round "3.17"]
[White "Arnaudov, G. Petar"]
[Black "Sorensen, Jan"]
[Result "1-0"]
[ECO "D02"]
[WhiteElo "2471"]
[BlackElo "2369"]
[Annotator "ChessBase"]
[PlyCount "69"]
[EventDate "2021.03.27"]
[EventType "team-tourn"]
[EventCountry "NET"]
[SourceTitle "playchess.com"]
[Source "ChessBase"]
[SourceQuality "1"]
[TimeControl "900+5"]

1. d4 {[%emt 0:00:00]} e6 {[%emt 0:00:06]} 2. Nf3 {[%emt 0:00:09]} Nf6 {[%emt 0:00:09]} 3. g3 {[%emt 0:00:05]} c5 {[%emt 0:00:16]} 4. Bg2 {[%emt 0:00:03]} cxd4 {[%emt 0:00:05]} 5. O-O {[%emt 0:00:02]} d5 {[%emt 0:00:04]} 6. Nxd4 {[%emt 0:00:02]} e5 {[%emt 0:00:08]} 7. Nb3 {[%emt 0:00:19]} h6 {[%emt 0:00:25]} 8. c3 {[%emt 0:00:09]} Be7 {[%emt 0:00:13]} 9. c4 {[%emt 0:00:08]} d4 {[%emt 0:01:00]} 10. e3 {[%emt 0:00:04]} d3 {[%emt 0:00:35]} 11. Nc3 {[%emt 0:00:17]} Nc6 {[%emt 0:00:08]} 12. Nd5 {[%emt 0:00:16]} Bf5 {[%emt 0:01:55]} 13. e4 {[%emt 0:00:35]} Nxe4 {[%emt 0:00:12]} 14. Qxd3 {[%emt 0:00:04]} Nd6 {[%emt 0:00:12]} 15. Qe2 {[%emt 0:00:07]} O-O {[%emt 0:00:13]} 16. Be3 {[%emt 0:00:05]} Qc8 {[%emt 0:03:08]} 17. Rfd1 {[%emt 0:00:15]} Rd8 {[%emt 0:00:09]} 18. c5 {[%emt 0:01:20]} Ne8 {[%emt 0:00:08]} 19. Nxe7+ {[%emt 0:00:07]} Nxe7 {[%emt 0:00:03]} 20. Rxd8 {[%emt 0:00:03]} Qxd8 {[%emt 0:00:01]} 21. Bxb7 {[%emt 0:00:02]} Rb8 {[%emt 0:00:52]} 22. Bg2 {[%emt 0:00:03]} Qc7 {[%emt 0:00:09]} 23. f4 {[%emt 0:00:11]} Nf6 {[%emt 0:00:09]} 24. h3 {[%emt 0:00:29]} Nfd5 {[%emt 0:00:18]} 25. Rf1 {[%emt 0:00:14]} exf4 {[%emt 0:00:18]} 26. Bd4 {[%emt 0:00:31]} f6 {[%emt 0:02:33]} 27. Qf2 {[%emt 0:00:30]} Bd3 {[%emt 0:00:15]} 28. Rd1 {[%emt 0:01:43]} fxg3 {[%emt 0:00:06]} 29. Qf3 {[%emt 0:00:57]} Bg6 {[%emt 0:00:13]} 30. Re1 {[%emt 0:00:48]} Bf7 {[%emt 0:00:14]} 31. Nc1 {[%emt 0:01:10]} Rd8 {[%emt 0:00:12]} 32. Ne2 {[%emt 0:00:05]} Ng6 {[%emt 0:00:12]} 33. Qxg3 {[%emt 0:01:11]} Ndf4 {[%emt 0:00:28]} 34. Bf2 {[%emt 0:00:04]} Nxg2 {[%emt 0:00:06]} 35. Qxc7 {[%emt 0:00:03]} 1-0

[Event "European Online Club-ch-I 2021"]
[Site "Online"]
[Date "2021.03.27"]
[Round "3.18"]
[White "Vinter-Schou, Uffe"]
[Black "Godart, Francois"]
[Result "1-0"]
[ECO "C02"]
[WhiteElo "2320"]
[BlackElo "2422"]
[Annotator "NA"]
[PlyCount "59"]
[EventDate "2021.03.27"]
[EventType "team-tourn"]
[EventCountry "NET"]
[SourceTitle "playchess.com"]
[Source "ChessBase"]
[SourceQuality "1"]
[TimeControl "900+5"]

1. e4 {[%emt 0:00:00]} e6 {[%emt 0:00:03]} 2. d4 {[%emt 0:00:02]} d5 {[%emt 0:00:01]} 3. e5 {[%emt 0:00:01]} c5 {[%emt 0:00:02]} 4. c3 {[%emt 0:00:01]} Qb6 {[%emt 0:00:01]} 5. Nf3 {[%emt 0:00:01]} Nc6 {[%emt 0:00:02]} 6. Be2 {[%emt 0:00:03]} cxd4 {[%emt 0:00:03]} 7. cxd4 {[%emt 0:00:02]} Nh6 {[%emt 0:00:02]} 8. Bxh6 {[%emt 0:00:02]} Qxb2 {[%emt 0:00:05]} 9. Nc3 {[%emt 0:00:03]} Qxc3+ {[%emt 0:01:24]} 10. Bd2 {[%emt 0:00:05]} Qa3 {[%emt 0:00:20]} 11. O-O {[%emt 0:00:06]} Be7 {[%emt 0:00:41]} 12. Rb1 {[%emt 0:01:48]} O-O {[%emt 0:01:03]} 13. Qc2 {[%emt 0:01:51]} f6 {[%emt 0:01:55]} 14. Rb3 {[%emt 0:08:28]} Qa4 {[%emt 0:01:00]} 15. Bb5 {[%emt 0:00:05]} Nxd4 {[%emt 0:00:41]} 16. Qc7 {[%emt 0:00:15]} Nxb5 {[%emt 0:00:45]} 17. Qxe7 {[%emt 0:00:05]} Nd4 {[%emt 0:02:49]} 18. Nxd4 {[%emt 0:00:24]} Qxd4 {[%emt 0:00:02]} 19. Bb4 {[%emt 0:00:06]} Bd7 {[%emt 0:00:49]} 20. Qxd7 {[%emt 0:00:07]} Rf7 {[%emt 0:00:01]} 21. Qxe6 {[%emt 0:00:06]} Qxe5 {[%emt 0:00:01]} 22. Re1 {[%emt 0:00:09]} Qxe6 {[%emt 0:00:17]} 23. Rxe6 {[%emt 0:00:03]} Rc8 {[%emt 0:00:01]} 24. g3 {[%emt 0:00:10]} Rd7 {[%emt 0:00:01]} 25. Rd6 {[%emt 0:00:09]} Rxd6 {[%emt 0:00:02]} 26. Bxd6 {[%emt 0:00:03]} b6 {[%emt 0:00:01]} 27. Rd3 {[%emt 0:00:10]} Rd8 {[%emt 0:00:02]} 28. Rxd5 {[%emt 0:00:06]} Kf7 {[%emt 0:00:02]} 29. Rd2 {[%emt 0:00:05]} Ke6 {[%emt 0:00:08]} 30. Bf4 {[%emt 0:00:16]} 1-0

[Event "European Online Club-ch-I 2021"]
[Site "Online"]
[Date "2021.03.27"]
[Round "3.19"]
[White "Marechal, Andy"]
[Black "Boe, Mads"]
[Result "0-1"]
[ECO "B18"]
[WhiteElo "2332"]
[BlackElo "2250"]
[Annotator "NA"]
[PlyCount "54"]
[EventDate "2021.03.27"]
[EventType "team-tourn"]
[EventCountry "NET"]
[SourceTitle "playchess.com"]
[Source "ChessBase"]
[SourceQuality "1"]
[TimeControl "900+5"]

1. e4 {[%emt 0:00:00]} c6 {[%emt 0:00:03]} 2. d4 {[%emt 0:00:02]} d5 {[%emt 0:00:02]} 3. Nc3 {[%emt 0:00:01]} dxe4 {[%emt 0:00:01]} 4. Nxe4 {[%emt 0:00:01]} Bf5 {[%emt 0:00:03]} 5. Ng3 {[%emt 0:00:02]} Bg6 {[%emt 0:00:02]} 6. h4 {[%emt 0:00:01]} h6 {[%emt 0:00:01]} 7. N1e2 {[%emt 0:00:02]} Nf6 {[%emt 0:00:03]} 8. Nf4 {[%emt 0:00:02]} Bh7 {[%emt 0:00:02]} 9. Bc4 {[%emt 0:00:00]} e6 {[%emt 0:00:01]} 10. O-O {[%emt 0:00:02]} Nd5 {[%emt 0:01:36]} 11. Bxd5 {[%emt 0:00:53]} cxd5 {[%emt 0:00:03]} 12. Qh5 {[%emt 0:01:10]} g6 {[%emt 0:02:05]} 13. Qe5 {[%emt 0:00:37]} Rg8 {[%emt 0:00:03]} 14. Re1 {[%emt 0:02:10]} Be7 {[%emt 0:01:45]} 15. c4 {[%emt 0:02:59]} Nc6 {[%emt 0:00:07]} 16. Qe2 {[%emt 0:00:47]} g5 {[%emt 0:00:11]} 17. hxg5 {[%emt 0:00:27]} hxg5 {[%emt 0:00:03]} 18. Qh5 {[%emt 0:00:46]} Bg6 {[%emt 0:01:43]} 19. Nxg6 {[%emt 0:00:05]} Rxg6 {[%emt 0:00:02]} 20. Qh8+ {[%emt 0:01:07]} Kd7 {[%emt 0:00:14]} 21. Qxd8+ {[%emt 0:00:07]} Rxd8 {[%emt 0:00:02]} 22. cxd5 {[%emt 0:00:01]} Nxd4 {[%emt 0:00:05]} 23. dxe6+ {[%emt 0:00:12]} Rxe6 {[%emt 0:00:03]} 24. Rxe6 {[%emt 0:00:18]} Kxe6 {[%emt 0:00:07]} 25. Be3 {[%emt 0:01:20]} Nc2 {[%emt 0:00:07]} 26. Rc1 {[%emt 0:00:30]} Nxe3 {[%emt 0:00:03]} 27. Re1 {[%emt 0:00:01]} Rd1 {[%emt 0:00:12]} 0-1

[Event "European Online Club-ch-I 2021"]
[Site "Online"]
[Date "2021.03.27"]
[Round "3.20"]
[White "Rendboe, John Filip"]
[Black "Dishman, Stephen"]
[Result "1/2-1/2"]
[ECO "D14"]
[WhiteElo "2169"]
[BlackElo "2316"]
[Annotator "NA"]
[PlyCount "127"]
[EventDate "2021.03.27"]
[EventType "team-tourn"]
[EventCountry "NET"]
[SourceTitle "playchess.com"]
[Source "ChessBase"]
[SourceQuality "1"]
[TimeControl "900+5"]

1. d4 {[%emt 0:00:25]} d5 {[%emt 0:00:02]} 2. c4 {[%emt 0:00:06]} c6 {[%emt 0:00:02]} 3. cxd5 {[%emt 0:00:03]} cxd5 {[%emt 0:00:02]} 4. Nc3 {[%emt 0:00:03]} Nf6 {[%emt 0:00:01]} 5. Nf3 {[%emt 0:00:04]} Nc6 {[%emt 0:00:02]} 6. Bf4 {[%emt 0:00:04]} Bf5 {[%emt 0:00:02]} 7. e3 {[%emt 0:00:06]} e6 {[%emt 0:00:01]} 8. Bb5 {[%emt 0:00:06]} Bb4 {[%emt 0:00:12]} 9. O-O {[%emt 0:00:06]} O-O {[%emt 0:00:08]} 10. Rc1 {[%emt 0:00:09]} Rc8 {[%emt 0:00:42]} 11. Qa4 {[%emt 0:00:10]} Bxc3 {[%emt 0:02:21]} 12. Rxc3 {[%emt 0:00:21]} Ne4 {[%emt 0:00:08]} 13. Rcc1 {[%emt 0:00:07]} g5 {[%emt 0:00:07]} 14. Bxc6 {[%emt 0:00:31]} Rxc6 {[%emt 0:00:23]} 15. Rxc6 {[%emt 0:00:12]} bxc6 {[%emt 0:00:00]} 16. Bg3 {[%emt 0:01:02]} h5 {[%emt 0:04:00]} 17. Qxc6 {[%emt 0:01:39]} h4 {[%emt 0:01:05]} 18. Bc7 {[%emt 0:00:08]} Qe8 {[%emt 0:00:52]} 19. Qxe8 {[%emt 0:00:49]} Rxe8 {[%emt 0:00:00]} 20. Rc1 {[%emt 0:01:08]} Rc8 {[%emt 0:00:12]} 21. Ne5 {[%emt 0:00:33]} Nd6 {[%emt 0:00:33]} 22. Rc6 {[%emt 0:00:33]} Ne8 {[%emt 0:00:18]} 23. Ba5 {[%emt 0:00:10]} Nd6 {[%emt 0:00:54]} 24. Rxc8+ {[%emt 0:00:39]} Nxc8 {[%emt 0:00:00]} 25. Bd8 {[%emt 0:00:08]} g4 {[%emt 0:00:31]} 26. Bxh4 {[%emt 0:00:10]} Nb6 {[%emt 0:00:04]} 27. Be7 {[%emt 0:00:35]} Bb1 {[%emt 0:00:16]} 28. Nxg4 {[%emt 0:00:23]} Bxa2 {[%emt 0:00:03]} 29. Bc5 {[%emt 0:00:06]} Nc4 {[%emt 0:00:08]} 30. Bxa7 {[%emt 0:00:07]} Nxb2 {[%emt 0:00:02]} 31. h4 {[%emt 0:00:11]} Nc4 {[%emt 0:00:06]} 32. Bc5 {[%emt 0:00:19]} Kg7 {[%emt 0:00:24]} 33. g3 {[%emt 0:00:25]} f5 {[%emt 0:00:11]} 34. Nh2 {[%emt 0:00:11]} Nd2 {[%emt 0:00:35]} 35. Kg2 {[%emt 0:00:09]} Bb1 {[%emt 0:00:09]} 36. f3 {[%emt 0:00:31]} Bd3 {[%emt 0:00:08]} 37. g4 {[%emt 0:00:14]} Kg6 {[%emt 0:00:49]} 38. Kf2 {[%emt 0:01:05]} Nc4 {[%emt 0:00:19]} 39. Be7 {[%emt 0:00:22]} e5 {[%emt 0:00:19]} 40. dxe5 {[%emt 0:00:19]} Nxe5 {[%emt 0:00:05]} 41. gxf5+ {[%emt 0:00:21]} Bxf5 {[%emt 0:00:05]} 42. Kg3 {[%emt 0:00:32]} Bc8 {[%emt 0:01:02]} 43. Ng4 {[%emt 0:00:30]} Nd3 {[%emt 0:00:23]} 44. Bd6 {[%emt 0:00:21]} Be6 {[%emt 0:00:23]} 45. Ne5+ {[%emt 0:00:26]} Nxe5 {[%emt 0:00:02]} 46. Bxe5 {[%emt 0:00:03]} Kf5 {[%emt 0:00:05]} 47. Bd4 {[%emt 0:00:05]} Bf7 {[%emt 0:00:03]} 48. Bb6 {[%emt 0:00:06]} Bh5 {[%emt 0:00:05]} 49. Bd8 {[%emt 0:00:04]} Bg6 {[%emt 0:00:03]} 50. Bg5 {[%emt 0:00:06]} Bh5 {[%emt 0:00:02]} 51. Bf4 {[%emt 0:00:05]} Bg6 {[%emt 0:00:02]} 52. Bb8 {[%emt 0:00:06]} Bh5 {[%emt 0:00:02]} 53. Kf2 {[%emt 0:00:24]} Bg6 {[%emt 0:00:03]} 54. Ke2 {[%emt 0:00:13]} Bh5 {[%emt 0:00:01]} 55. Bg3 {[%emt 0:00:03]} Ke6 {[%emt 0:00:10]} 56. Kf2 {[%emt 0:00:06]} Kf5 {[%emt 0:00:02]} 57. Bc7 {[%emt 0:00:03]} Bg6 {[%emt 0:00:03]} 58. Kg3 {[%emt 0:00:07]} Bh5 {[%emt 0:00:01]} 59. Bd6 {[%emt 0:00:04]} Bg6 {[%emt 0:00:02]} 60. e4+ {[%emt 0:00:31]} dxe4 {[%emt 0:00:02]} 61. fxe4+ {[%emt 0:00:04]} Kxe4 {[%emt 0:00:02]} 62. Kg4 {[%emt 0:00:02]} Be8 {[%emt 0:00:02]} 63. h5 {[%emt 0:00:07]} Bxh5+ {[%emt 0:00:02]} 64. Kxh5 {[%emt 0:00:02]} 1/2-1/2

[Event "European Online Club-ch-I 2021"]
[Site "Online"]
[Date "2021.03.27"]
[Round "4.1"]
[White "Verdier, Patrice"]
[Black "Sorensen, Jan"]
[Result "0-1"]
[ECO "E20"]
[WhiteElo "2109"]
[BlackElo "2369"]
[Annotator "NA"]
[PlyCount "76"]
[EventDate "2021.03.27"]
[EventType "team-tourn"]
[EventCountry "NET"]
[SourceTitle "playchess.com"]
[Source "ChessBase"]
[SourceQuality "1"]
[TimeControl "900+5"]

1. d4 {[%emt 0:00:00]} e6 {[%emt 0:00:04]} 2. c4 {[%emt 0:00:02]} Nf6 {[%emt 0:00:02]} 3. Nc3 {[%emt 0:00:03]} Bb4 {[%emt 0:00:03]} 4. f3 {[%emt 0:00:01]} Nc6 {[%emt 0:00:37]} 5. d5 {[%emt 0:00:24]} Ne5 {[%emt 0:00:19]} 6. e4 {[%emt 0:00:07]} b6 {[%emt 0:00:24]} 7. Bg5 {[%emt 0:01:08]} h6 {[%emt 0:00:36]} 8. Bh4 {[%emt 0:00:04]} O-O {[%emt 0:01:33]} 9. a3 {[%emt 0:01:44]} Be7 {[%emt 0:00:26]} 10. f4 {[%emt 0:00:37]} Ng6 {[%emt 0:00:28]} 11. Bg3 {[%emt 0:00:02]} d6 {[%emt 0:00:20]} 12. e5 {[%emt 0:00:23]} Nd7 {[%emt 0:00:25]} 13. dxe6 {[%emt 0:00:48]} fxe6 {[%emt 0:00:06]} 14. Qg4 {[%emt 0:00:02]} Nh4 {[%emt 0:02:07]} 15. Qxe6+ {[%emt 0:00:27]} Kh8 {[%emt 0:00:04]} 16. Nd5 {[%emt 0:00:15]} Nf5 {[%emt 0:03:25]} 17. Nxe7 {[%emt 0:01:50]} Nxe7 {[%emt 0:00:06]} 18. exd6 {[%emt 0:00:24]} Nf5 {[%emt 0:00:32]} 19. O-O-O {[%emt 0:00:42]} Nxd6 {[%emt 0:00:14]} 20. Bd3 {[%emt 0:02:43]} Nc5 {[%emt 0:00:10]} 21. Qg6 {[%emt 0:00:13]} Nxd3+ {[%emt 0:00:11]} 22. Qxd3 {[%emt 0:00:04]} Bf5 {[%emt 0:00:35]} 23. Qc3 {[%emt 0:00:05]} Qe8 {[%emt 0:00:16]} 24. Nf3 {[%emt 0:00:11]} Qe4 {[%emt 0:00:24]} 25. Nd2 {[%emt 0:00:15]} Qc6 {[%emt 0:00:11]} 26. Rhe1 {[%emt 0:00:19]} Rf7 {[%emt 0:00:12]} 27. Re5 {[%emt 0:00:04]} Raf8 {[%emt 0:00:34]} 28. Rde1 {[%emt 0:00:23]} a5 {[%emt 0:00:02]} 29. Bh4 {[%emt 0:00:11]} Qxg2 {[%emt 0:00:15]} 30. Be7 {[%emt 0:00:09]} Rg8 {[%emt 0:00:18]} 31. Bxd6 {[%emt 0:00:05]} cxd6 {[%emt 0:00:01]} 32. Rd5 {[%emt 0:00:10]} Qxh2 {[%emt 0:00:06]} 33. Rxd6 {[%emt 0:00:15]} Qxf4 {[%emt 0:00:10]} 34. Rxb6 {[%emt 0:00:02]} Kh7 {[%emt 0:00:09]} 35. Qxa5 {[%emt 0:00:26]} Rc7 {[%emt 0:00:11]} 36. Qe5 {[%emt 0:00:45]} Rxc4+ {[%emt 0:00:07]} 37. Kd1 {[%emt 0:00:08]} Bg4+ {[%emt 0:00:02]} 38. Re2 {[%emt 0:00:27]} Qxe5 {[%emt 0:00:13]} 0-1

[Event "European Online Club-ch-I 2021"]
[Site "Online"]
[Date "2021.03.27"]
[Round "4.2"]
[White "Vinter-Schou, Uffe"]
[Black "Van Hoolandt, Patrick"]
[Result "1-0"]
[ECO "C48"]
[WhiteElo "2320"]
[BlackElo "2017"]
[Annotator "NA"]
[PlyCount "71"]
[EventDate "2021.03.27"]
[EventType "team-tourn"]
[EventCountry "NET"]
[SourceTitle "playchess.com"]
[Source "ChessBase"]
[SourceQuality "1"]
[TimeControl "900+5"]

1. e4 {[%emt 0:00:00]} e5 {[%emt 0:00:05]} 2. Nf3 {[%emt 0:00:05]} Nc6 {[%emt 0:00:02]} 3. Nc3 {[%emt 0:00:03]} Nf6 {[%emt 0:00:02]} 4. Bb5 {[%emt 0:00:02]} Bd6 {[%emt 0:00:03]} 5. d3 {[%emt 0:00:12]} h6 {[%emt 0:00:12]} 6. a3 {[%emt 0:00:06]} O-O {[%emt 0:00:09]} 7. g4 {[%emt 0:00:14]} Nd4 {[%emt 0:00:37]} 8. Bc4 {[%emt 0:00:14]} Nh7 {[%emt 0:00:22]} 9. Be3 {[%emt 0:00:59]} Nxf3+ {[%emt 0:00:25]} 10. Qxf3 {[%emt 0:00:04]} Qh4 {[%emt 0:00:01]} 11. h3 {[%emt 0:00:58]} Be7 {[%emt 0:00:02]} 12. Nd5 {[%emt 0:00:25]} Bd8 {[%emt 0:00:02]} 13. Bd2 {[%emt 0:00:50]} c6 {[%emt 0:00:19]} 14. Ne3 {[%emt 0:00:05]} Ng5 {[%emt 0:01:11]} 15. Qg2 {[%emt 0:00:07]} g6 {[%emt 0:00:28]} 16. O-O-O {[%emt 0:00:10]} b5 {[%emt 0:00:03]} 17. Bb3 {[%emt 0:00:45]} d6 {[%emt 0:00:03]} 18. f4 {[%emt 0:01:15]} exf4 {[%emt 0:00:00]} 19. Be1 {[%emt 0:00:11]} f3 {[%emt 0:00:46]} 20. Qf1 {[%emt 0:00:33]} Qxe1 {[%emt 0:01:04]} 21. Rxe1 {[%emt 0:00:14]} a5 {[%emt 0:00:08]} 22. h4 {[%emt 0:00:04]} Nh7 {[%emt 0:00:14]} 23. Qxf3 {[%emt 0:00:04]} a4 {[%emt 0:00:04]} 24. Ba2 {[%emt 0:00:05]} b4 {[%emt 0:00:02]} 25. Ref1 {[%emt 0:00:13]} Ra7 {[%emt 0:00:04]} 26. axb4 {[%emt 0:00:07]} a3 {[%emt 0:00:16]} 27. bxa3 {[%emt 0:00:16]} Rxa3 {[%emt 0:00:08]} 28. Bxf7+ {[%emt 0:01:43]} Kg7 {[%emt 0:00:02]} 29. h5 {[%emt 0:00:01]} Bf6 {[%emt 0:00:08]} 30. hxg6 {[%emt 0:00:31]} Bc3 {[%emt 0:00:13]} 31. Kd1 {[%emt 0:00:03]} Ng5 {[%emt 0:00:07]} 32. Nf5+ {[%emt 0:00:12]} Kf6 {[%emt 0:00:07]} 33. Qg3 {[%emt 0:00:27]} Nxe4 {[%emt 0:00:51]} 34. Nxd6+ {[%emt 0:00:17]} Kg7 {[%emt 0:00:09]} 35. Nxe4 {[%emt 0:00:15]} Bxb4 {[%emt 0:00:06]} 36. Qe5# {[%emt 0:00:06]} 1-0

[Event "European Online Club-ch-I 2021"]
[Site "Online"]
[Date "2021.03.27"]
[Round "4.3"]
[White "Meylan, Pierre"]
[Black "Boe, Mads"]
[Result "0-1"]
[ECO "B18"]
[WhiteElo "2053"]
[BlackElo "2250"]
[Annotator "NA"]
[PlyCount "62"]
[EventDate "2021.03.27"]
[EventType "team-tourn"]
[EventCountry "NET"]
[SourceTitle "playchess.com"]
[Source "ChessBase"]
[SourceQuality "1"]
[TimeControl "900+5"]

1. e4 {[%emt 0:00:00]} c6 {[%emt 0:00:03]} 2. d4 {[%emt 0:00:04]} d5 {[%emt 0:00:02]} 3. Nd2 {[%emt 0:00:02]} dxe4 {[%emt 0:00:02]} 4. Nxe4 {[%emt 0:00:02]} Bf5 {[%emt 0:00:02]} 5. Ng3 {[%emt 0:00:05]} Bg6 {[%emt 0:00:01]} 6. Nf3 {[%emt 0:00:03]} Nf6 {[%emt 0:00:03]} 7. Bd3 {[%emt 0:00:22]} e6 {[%emt 0:00:03]} 8. O-O {[%emt 0:00:05]} Nbd7 {[%emt 0:00:18]} 9. c4 {[%emt 0:00:25]} Be7 {[%emt 0:00:05]} 10. b3 {[%emt 0:00:49]} O-O {[%emt 0:00:05]} 11. Bb2 {[%emt 0:01:14]} a5 {[%emt 0:00:04]} 12. Re1 {[%emt 0:00:21]} a4 {[%emt 0:00:07]} 13. Bxg6 {[%emt 0:00:52]} hxg6 {[%emt 0:00:04]} 14. Qd2 {[%emt 0:00:30]} Qb6 {[%emt 0:00:21]} 15. Qc3 {[%emt 0:01:28]} Bb4 {[%emt 0:00:05]} 16. Qd3 {[%emt 0:00:22]} Bxe1 {[%emt 0:00:03]} 17. Rxe1 {[%emt 0:00:03]} axb3 {[%emt 0:00:06]} 18. axb3 {[%emt 0:00:04]} Ra2 {[%emt 0:00:01]} 19. Bc1 {[%emt 0:00:35]} Ra1 {[%emt 0:00:22]} 20. Ne5 {[%emt 0:01:24]} Nxe5 {[%emt 0:00:09]} 21. dxe5 {[%emt 0:00:07]} Ng4 {[%emt 0:00:06]} 22. Qe2 {[%emt 0:00:38]} Nh6 {[%emt 0:00:38]} 23. Ne4 {[%emt 0:00:37]} Nf5 {[%emt 0:00:28]} 24. Qf3 {[%emt 0:01:23]} Qd4 {[%emt 0:01:37]} 25. Ng5 {[%emt 0:01:18]} Qxe5 {[%emt 0:02:44]} 26. Kf1 {[%emt 0:00:51]} Qxh2 {[%emt 0:00:10]} 27. g3 {[%emt 0:01:17]} Nd4 {[%emt 0:00:57]} 28. Qe4 {[%emt 0:00:23]} e5 {[%emt 0:01:41]} 29. Bb2 {[%emt 0:01:19]} f5 {[%emt 0:00:26]} 30. Bxd4 {[%emt 0:00:28]} fxe4 {[%emt 0:00:14]} 31. Bxa1 {[%emt 0:00:03]} Qxf2# {[%emt 0:00:04]} 0-1

[Event "European Online Club-ch-I 2021"]
[Site "Online"]
[Date "2021.03.27"]
[Round "4.4"]
[White "Rendboe, John Filip"]
[Black "Rapaire, Jean-Michel"]
[Result "1-0"]
[ECO "B07"]
[WhiteElo "2169"]
[BlackElo "1739"]
[Annotator "NA"]
[PlyCount "73"]
[EventDate "2021.03.27"]
[EventType "team-tourn"]
[EventCountry "NET"]
[SourceTitle "playchess.com"]
[Source "ChessBase"]
[SourceQuality "1"]
[TimeControl "900+5"]

1. d4 {[%emt 0:00:00]} d6 {[%emt 0:00:05]} 2. e4 {[%emt 0:00:18]} e5 {[%emt 0:00:04]} 3. dxe5 {[%emt 0:00:11]} dxe5 {[%emt 0:00:04]} 4. Qxd8+ {[%emt 0:00:04]} Kxd8 {[%emt 0:00:02]} 5. Bc4 {[%emt 0:00:03]} f6 {[%emt 0:00:04]} 6. Nc3 {[%emt 0:00:14]} c6 {[%emt 0:00:05]} 7. a4 {[%emt 0:00:04]} Kc7 {[%emt 0:00:11]} 8. Be3 {[%emt 0:00:14]} Nd7 {[%emt 0:00:05]} 9. a5 {[%emt 0:00:06]} Bc5 {[%emt 0:00:08]} 10. Bd2 {[%emt 0:00:50]} Ne7 {[%emt 0:00:52]} 11. Nge2 {[%emt 0:00:13]} Rd8 {[%emt 0:00:11]} 12. Na4 {[%emt 0:00:21]} Bd6 {[%emt 0:00:13]} 13. O-O {[%emt 0:01:04]} Nc5 {[%emt 0:00:11]} 14. Nxc5 {[%emt 0:00:30]} Bxc5 {[%emt 0:00:06]} 15. Bc3 {[%emt 0:00:05]} Bg4 {[%emt 0:00:16]} 16. b4 {[%emt 0:00:45]} Bd6 {[%emt 0:00:12]} 17. Rfb1 {[%emt 0:00:23]} a6 {[%emt 0:00:07]} 18. h3 {[%emt 0:00:50]} Bxe2 {[%emt 0:00:21]} 19. Bxe2 {[%emt 0:00:04]} Ng6 {[%emt 0:00:03]} 20. g3 {[%emt 0:00:16]} Nf8 {[%emt 0:00:24]} 21. Bc4 {[%emt 0:00:12]} Re8 {[%emt 0:00:34]} 22. Bd2 {[%emt 0:00:23]} Rad8 {[%emt 0:00:57]} 23. Be3 {[%emt 0:00:06]} Rd7 {[%emt 0:00:01]} 24. Be2 {[%emt 0:00:28]} Kc8 {[%emt 0:00:13]} 25. c4 {[%emt 0:00:17]} Ne6 {[%emt 0:00:13]} 26. b5 {[%emt 0:00:07]} c5 {[%emt 0:00:41]} 27. bxa6 {[%emt 0:00:15]} bxa6 {[%emt 0:00:03]} 28. Rb6 {[%emt 0:00:05]} Bc7 {[%emt 0:00:35]} 29. Rxa6 {[%emt 0:00:14]} Kb7 {[%emt 0:00:07]} 30. Rxe6 {[%emt 0:00:11]} Rxe6 {[%emt 0:00:02]} 31. Bg4 {[%emt 0:00:03]} Red6 {[%emt 0:00:24]} 32. a6+ {[%emt 0:00:54]} Ka8 {[%emt 0:00:12]} 33. Bxc5 {[%emt 0:00:20]} Rd8 {[%emt 0:00:14]} 34. Bxd6 {[%emt 0:00:41]} Rxd6 {[%emt 0:00:05]} 35. Bc8 {[%emt 0:00:14]} Rd4 {[%emt 0:00:18]} 36. a7 {[%emt 0:00:18]} Rxc4 {[%emt 0:00:50]} 37. Bb7+ {[%emt 0:00:06]} 1-0

[Event "European Online Club-ch-I 2021"]
[Site "Online"]
[Date "2021.03.27"]
[Round "4.5"]
[White "Hurdzan, Tomas"]
[Black "Arnaudov, G. Petar"]
[Result "0-1"]
[ECO "A25"]
[WhiteElo "2317"]
[BlackElo "2471"]
[Annotator "ChessBase"]
[PlyCount "116"]
[EventDate "2021.03.27"]
[EventType "team-tourn"]
[EventCountry "NET"]
[SourceTitle "playchess.com"]
[Source "ChessBase"]
[SourceQuality "1"]
[TimeControl "900+5"]

1. c4 {[%emt 0:00:00]} e5 {[%emt 0:00:08]} 2. Nc3 {[%emt 0:00:03]} Nc6 {[%emt 0:00:05]} 3. g3 {[%emt 0:00:02]} Bc5 {[%emt 0:00:02]} 4. e3 {[%emt 0:00:02]} d6 {[%emt 0:00:07]} 5. Bg2 {[%emt 0:00:05]} a6 {[%emt 0:00:03]} 6. Nge2 {[%emt 0:00:03]} Ba7 {[%emt 0:00:03]} 7. d4 {[%emt 0:00:19]} h5 {[%emt 0:00:09]} 8. h3 {[%emt 0:00:03]} h4 {[%emt 0:00:07]} 9. g4 {[%emt 0:00:03]} f5 {[%emt 0:00:01]} 10. Qc2 {[%emt 0:00:33]} exd4 {[%emt 0:00:12]} 11. exd4 {[%emt 0:00:05]} Nxd4 {[%emt 0:00:11]} 12. Nxd4 {[%emt 0:00:03]} Bxd4 {[%emt 0:00:02]} 13. gxf5 {[%emt 0:00:44]} Ne7 {[%emt 0:00:10]} 14. Bg5 {[%emt 0:00:41]} O-O {[%emt 0:00:03]} 15. Be4 {[%emt 0:00:42]} Bf6 {[%emt 0:00:14]} 16. Rg1 {[%emt 0:01:08]} Nxf5 {[%emt 0:00:11]} 17. Bxf6 {[%emt 0:00:33]} Qxf6 {[%emt 0:00:02]} 18. O-O-O {[%emt 0:00:29]} c6 {[%emt 0:00:04]} 19. Qd2 {[%emt 0:00:50]} Ne7 {[%emt 0:00:46]} 20. f3 {[%emt 0:03:59]} Be6 {[%emt 0:00:17]} 21. Bc2 {[%emt 0:01:24]} d5 {[%emt 0:00:18]} 22. Rde1 {[%emt 0:00:42]} Rae8 {[%emt 0:00:17]} 23. cxd5 {[%emt 0:00:13]} Nxd5 {[%emt 0:00:05]} 24. Ne4 {[%emt 0:00:32]} Qf4 {[%emt 0:00:14]} 25. Ng5 {[%emt 0:00:11]} Bc8 {[%emt 0:01:15]} 26. Bh7+ {[%emt 0:00:57]} Kh8 {[%emt 0:00:03]} 27. Bg6 {[%emt 0:00:02]} Rxe1+ {[%emt 0:00:24]} 28. Rxe1 {[%emt 0:00:01]} Qxd2+ {[%emt 0:00:10]} 29. Kxd2 {[%emt 0:00:02]} Nf4 {[%emt 0:00:01]} 30. Bc2 {[%emt 0:00:45]} Nxh3 {[%emt 0:00:20]} 31. Nxh3 {[%emt 0:00:59]} Bxh3 {[%emt 0:00:03]} 32. Re5 {[%emt 0:00:06]} g6 {[%emt 0:00:42]} 33. Bxg6 {[%emt 0:00:02]} Kg7 {[%emt 0:00:02]} 34. Be4 {[%emt 0:00:05]} Bc8 {[%emt 0:00:19]} 35. Rh5 {[%emt 0:00:29]} Rh8 {[%emt 0:00:22]} 36. Rxh8 {[%emt 0:00:02]} Kxh8 {[%emt 0:00:02]} 37. Ke3 {[%emt 0:00:02]} Kg7 {[%emt 0:00:02]} 38. Kf4 {[%emt 0:00:10]} Kf6 {[%emt 0:00:03]} 39. a3 {[%emt 0:00:18]} c5 {[%emt 0:00:11]} 40. Bd3 {[%emt 0:00:08]} b5 {[%emt 0:00:04]} 41. Bf1 {[%emt 0:00:06]} h3 {[%emt 0:00:29]} 42. Kg3 {[%emt 0:00:05]} c4 {[%emt 0:01:41]} 43. f4 {[%emt 0:00:20]} Be6 {[%emt 0:00:42]} 44. Be2 {[%emt 0:00:03]} a5 {[%emt 0:00:05]} 45. Bf3 {[%emt 0:00:10]} b4 {[%emt 0:00:05]} 46. axb4 {[%emt 0:00:02]} axb4 {[%emt 0:00:01]} 47. Be2 {[%emt 0:00:18]} c3 {[%emt 0:00:02]} 48. bxc3 {[%emt 0:00:01]} b3 {[%emt 0:00:10]} 49. f5 {[%emt 0:00:15]} Bxf5 {[%emt 0:00:18]} 50. Bc4 {[%emt 0:00:03]} b2 {[%emt 0:00:20]} 51. Ba2 {[%emt 0:00:01]} Ke5 {[%emt 0:00:04]} 52. Kh2 {[%emt 0:00:06]} Kf4 {[%emt 0:00:05]} 53. c4 {[%emt 0:00:06]} Be6 {[%emt 0:00:04]} 54. Bb1 {[%emt 0:00:06]} Ke3 {[%emt 0:00:08]} 55. c5 {[%emt 0:00:02]} Kd2 {[%emt 0:00:01]} 56. c6 {[%emt 0:00:06]} Kc1 {[%emt 0:00:02]} 57. Be4 {[%emt 0:00:09]} b1=Q {[%emt 0:00:03]} 58. Bxb1 {[%emt 0:00:02]} Kxb1 {[%emt 0:00:01]} 0-1